bitfinex-derivatives/quotes_ETHF0:USTF0_20240822
["timestamp","ask_amount","ask_price","bid_price","bid_amount"]
[1724342933167,1.10210325,2602.5,2601.8,4.16839]
[1724342933371,0.71796325,2602.5,2602.4,0.38414]
[1724342933573,0.71796325,2602.5,2601.9,0.96054]
[1724342933976,0.71796325,2602.5,2602.0,0.96052]
[1724342934172,0.00576325,2602.5,2602.4,0.38414]
[1724342934372,0.00576325,2602.5,2602.4,1.34451]
[1724342934574,0.00576325,2602.5,2602.4,5.18691]
[1724342935776,0.00576325,2602.5,2602.4,4.22654]
[1724342936762,0.00576325,2602.5,2602.4,0.38414]
[1724342937074,0.00576325,2602.5,2602.1,0.38418]
[1724342937075,0.38416,2602.3,2602.1,0.38418]
[1724342937377,0.3773,2602.2,2601.7,3.2078]
[1724342937683,0.3773,2602.2,2602.1,0.38419]
[1724342937865,0.3773,2602.2,2601.9,0.38422]
[1724342938062,7.051,2602.1,2601.4,3.21792114]
[1724342938270,3.2078,2602.1,2601.4,0.01012114]
[1724342938471,0.38421,2602.0,2601.8,0.38423]
[1724342938679,0.53806926,2602.0,2601.8,0.38423]
[1724342938975,0.15386926,2601.9,2601.8,0.38423]
[1724342939274,0.48275538,2602.1,2601.9,0.38421]
[1724342939468,0.8669565,2602.1,2601.4,0.01012114]
[1724342939671,0.4827565,2602.0,2601.8,0.38422]
[1724342939866,0.15389886,2601.9,2601.7,0.38424]
[1724342940173,0.15389886,2601.9,2601.4,0.01012114]
[1724342940378,0.32885764,2602.0,2601.4,0.01012114]
[1724342940379,0.15389886,2601.8,2601.4,0.97083114]
[1724342940569,0.3773,2602.2,2601.4,0.01012114]
[1724342940570,0.38419,2602.1,2601.4,0.01012114]
[1724342940877,0.8669271,2602.0,2601.7,0.38424]
[1724342941180,0.8684171,2601.9,2601.8,0.38423]
[1724342941474,0.86845483,2601.9,2601.8,0.38423]
[1724342941666,0.86845483,2601.9,2601.7,0.38424]
[1724342941868,0.48276749,2601.8,2601.7,0.38424]
[1724342942466,0.15389535,2601.8,2601.7,0.38424]
[1724342942875,0.15389535,2601.8,2601.7,4.22744]
[1724342943069,0.32886443,2601.9,2601.8,0.38423]
[1724342943275,0.32886443,2601.9,2601.8,8.50902]
[1724342943276,0.48271368,2601.9,2601.8,8.50902]
[1724342943474,0.32886443,2601.9,2601.8,8.50902]
[1724342944271,0.32886443,2601.9,2601.8,7.54843]
[1724342944574,0.32886443,2601.9,2601.8,8.50902]
[1724342944879,0.32886443,2601.9,2601.8,7.54843]
[1724342945180,0.32886443,2601.9,2601.8,4.22743]
[1724342945378,0.48272866,2601.9,2601.8,0.38423]
[1724342945565,0.81157236,2601.9,2601.8,0.38423]
[1724342945771,4.65477236,2601.9,2601.4,0.01012114]
[1724342945971,0.32886443,2601.9,2601.8,0.38423]
[1724342946173,1.19796101,2601.9,2601.8,0.38423]
[1724342946377,0.38423,2601.8,2601.4,0.01012114]
[1724342946682,4.07483658,2601.8,2601.6,0.38426]
[1724342946871,0.83659658,2601.7,2601.6,0.38426]
[1724342947283,0.3538,2601.7,2601.4,0.01012114]
[1724342947585,0.32891818,2601.6,2600.7,4.20877416]
[1724342947778,0.3843,2601.4,2600.7,3.2078]
[1724342947974,0.86716487,2601.3,2601.1,0.38433]
[1724342948286,0.48285487,2601.2,2601.1,0.38433]
[1724342948474,0.98510896,2601.4,2601.2,0.38432]
[1724342948672,0.8438054,2601.3,2601.2,0.38799994]
[1724342949783,0.8438054,2601.3,2601.2,0.00367994]
[1724342950170,0.8438054,2601.3,2601.2,0.38799994]
[1724342950575,0.8438054,2601.3,2601.2,0.00367994]
[1724342950770,0.51479426,2601.3,2601.2,0.38799994]
[1724342951078,0.84380459,2601.3,2601.2,0.38799994]
[1724342951382,0.48300459,2601.3,2601.2,0.38799994]
[1724342951887,0.48300459,2601.3,2601.2,4.23199994]
[1724342952275,0.48292615,2601.3,2601.2,4.23199994]
[1724342953895,0.48293326,2601.3,2601.2,3.84767994]
[1724342954091,4.48725,2601.7,2601.4,0.38428]
[1724342954279,3.5795,2601.9,2601.2,0.00367994]
[1724342954482,0.63682432,2601.6,2601.5,0.38428]
[1724342954790,0.96574458,2601.6,2601.5,0.38428]
[1724342954979,0.96574458,2601.6,2601.5,4.22828]
[1724342955182,0.63682432,2601.6,2601.5,4.22828]
[1724342955488,0.48288634,2601.6,2601.5,4.22828]
[1724342955683,0.63679791,2601.6,2601.5,4.22828]
[1724342956288,0.96568402,2601.6,2601.5,4.22828]
[1724342956590,0.63679791,2601.6,2601.5,4.22828]
[1724342957388,0.96567955,2601.6,2601.5,4.22828]
[1724342957589,0.96567955,2601.6,2601.5,0.38428]
[1724342957987,0.96567955,2601.6,2601.5,4.22828]
[1724342958190,0.48288634,2601.6,2601.5,4.22828]
[1724342958380,0.9657086,2601.6,2601.5,4.22828]
[1724342958577,0.63681049,2601.6,2601.5,4.22828]
[1724342958781,0.63681049,2601.6,2601.5,0.38428]
[1724342958991,0.96568088,2601.6,2601.5,0.38428]
[1724342959192,0.63681049,2601.6,2601.5,4.22828]
[1724342959383,0.96568522,2601.6,2601.5,4.22828]
[1724342959687,0.81173643,2601.6,2601.5,0.38428]
[1724342959892,0.48280655,2601.6,2601.5,0.38428]
[1724342961493,0.15394065,2601.6,2601.5,0.38428]
[1724342961789,0.86712517,2601.6,2601.4,3.59208]
[1724342961989,0.48286517,2601.5,2601.4,0.38428]
[1724342962183,0.4828766,2601.6,2601.5,0.38428]
[1724342962488,0.48287561,2601.6,2601.5,0.38428]
[1724342963288,0.86713561,2601.6,2601.4,0.38428]
[1724342963488,0.48287561,2601.5,2601.4,0.38429]
[1724342964886,0.38425,2601.7,2601.6,0.38426]
[1724342965082,12.76581559,2601.7,2601.2,3.21147994]
[1724342965282,3.2078,2601.3,2600.1,1.96216416]
[1724342965487,0.38441,2600.7,2600.4,0.38443]
[1724342965688,0.38441,2600.7,2600.2,3.2078]
[1724342965689,0.38445,2600.4,2600.2,3.2078]
[1724342965996,0.86757565,2600.3,2599.7,6.5288]
[1724342966190,0.15394042,2600.2,2600.0,0.38449]
[1724342966394,0.15394042,2600.2,2600.1,0.38448]
[1724342966395,0.4831721,2600.2,2600.1,0.38448]
[1724342966695,0.4831721,2600.2,2599.8,0.00576325]
[1724342966696,0.38449,2600.1,2599.8,0.39028325]
[1724342966898,0.84611105,2600.0,2599.8,0.39028325]
[1724342967099,0.15394042,2599.9,2599.8,0.00576325]
[1724342967285,0.53845042,2599.9,2599.8,0.00576325]
[1724342967489,0.52464042,2599.9,2599.8,0.00576325]
[1724342967789,5.08486212,2599.9,2599.8,0.00576325]
[1724342968291,0.3707,2599.9,2599.8,0.00576325]
[1724342968492,0.85421409,2599.9,2599.8,0.39029325]
[1724342968701,0.52489016,2599.9,2599.8,0.39029325]
[1724342969485,0.3707,2599.9,2599.8,0.39029325]
[1724342969890,0.3707,2599.9,2599.8,4.23669325]
[1724342970198,0.3649,2600.2,2600.1,0.38448]
[1724342970400,0.88233499,2600.2,2599.8,0.39027325]
[1724342970696,0.7282,2600.2,2599.9,0.3845]
[1724342972089,0.7282,2600.2,2599.8,0.00576325]
[1724342972290,0.75619,2600.1,2599.8,0.00576325]
[1724342972895,0.3717,2600.1,2599.8,0.39029325]
[1724342973600,0.3717,2600.1,2600.0,0.3845]
[1724342973801,0.3633,2600.2,2600.1,0.38448]
[1724342973994,3.21049134,2600.3,2600.2,0.38447]
[1724342973995,0.00269134,2600.3,2600.2,0.38447]
[1724342974499,0.00269134,2600.3,2600.2,4.23007]
[1724342974797,0.00269134,2600.3,2600.2,10.19125]
[1724342975390,0.00269134,2600.3,2600.2,50.69125]
[1724342975597,0.00269134,2600.3,2600.2,49.73007]
[1724342976012,0.00269134,2600.3,2600.2,44.73007]
[1724342979903,0.38715134,2600.3,2600.1,0.38448]
[1724342980106,0.3777,2600.2,2600.1,0.38448]
[1724342982100,0.3777,2600.2,2600.0,0.38449]
[1724342982296,0.7643,2600.2,2600.1,0.38448]
[1724342982701,0.7643,2600.2,2600.0,0.38449]
[1724342983102,0.7643,2600.2,2600.1,0.38448]
[1724342985009,0.38448,2600.1,2599.9,0.38451]
[1724342985198,3.59228,2600.1,2599.9,0.38451]
[1724342985601,3.2078,2600.1,2599.9,0.38451]
[1724342986509,3.2078,2600.1,2600.0,0.3845]
[1724342987104,0.7643,2600.2,2599.8,0.00576325]
[1724342987105,0.3777,2600.2,2600.1,0.38448]
[1724342987406,0.00269134,2600.3,2600.2,1.34565]
[1724342987604,0.00269134,2600.3,2600.2,5.19125]
[1724342987807,0.00269134,2600.3,2600.2,4.23007]
[1724342988017,0.38714134,2600.3,2600.2,3.8456]
[1724342988203,0.00269134,2600.3,2600.2,0.38447]
[1724342988813,0.00269134,2600.3,2600.2,4.23007]
[1724342991202,0.00269134,2600.3,2600.2,7.43787]
[1724342993497,0.00576325,2600.4,2600.3,6.15233]
[1724342993498,4.59e-06,2600.4,2600.3,6.15233]
[1724342993700,4.59e-06,2600.4,2600.3,12.50762]
[1724342994002,0.60103922,2601.8,2601.6,0.38426]
[1724342994199,0.60103922,2601.8,2601.5,0.38427]
[1724342994200,0.48286204,2601.7,2601.5,0.38427]
[1724342994399,0.48286204,2601.7,2601.0,3.2078]
[1724342994400,0.15393942,2601.6,2601.4,0.38429]
[1724342994707,0.15798515,2601.6,2601.4,0.00362323]
[1724342994909,0.00404573,2601.6,2601.4,0.00362323]
[1724342995108,0.53824845,2601.5,2601.4,0.00362323]
[1724342995309,0.15396845,2601.5,2601.4,0.00362323]
[1724342995616,0.00404573,2601.6,2601.5,0.38428]
[1724342996306,0.00404573,2601.6,2601.4,0.00362323]
[1724342996505,0.00404573,2601.6,2601.4,0.38791323]
[1724342997213,0.38830573,2601.6,2601.4,0.00362323]
[1724342997909,4.23230573,2601.6,2601.4,0.00362323]
[1724342998109,0.00404573,2601.6,2601.4,0.00362323]
[1724342998311,0.38831573,2601.6,2601.4,0.00362323]
[1724342998709,0.00404573,2601.6,2601.4,0.00362323]
[1724342999115,0.38830573,2601.6,2601.4,0.00362323]
[1724342999414,0.00404573,2601.6,2601.4,0.00362323]
[1724342999608,0.38831573,2601.6,2601.4,0.00362323]
[1724342999917,0.00404573,2601.6,2601.4,0.00362323]
[1724343000414,3.997978,2601.5,2601.4,0.00362323]
[1724343000711,4.382258,2601.5,2601.4,0.00362323]
[1724343001416,3.997978,2601.5,2601.4,0.00362323]
[1724343001614,3.844,2601.5,2601.4,0.00362323]
[1724343001819,0.1539833,2601.5,2601.4,0.38791323]
[1724343003306,0.00404573,2601.6,2601.5,0.38428]
[1724343004309,0.00404573,2601.6,2601.5,4.22828]
[1724343005510,0.00404573,2601.6,2601.5,0.38428]
[1724343006920,0.00404573,2601.6,2601.4,0.00362323]
[1724343007122,0.53825639,2601.5,2601.4,0.00362323]
[1724343007509,0.38431,2601.3,2601.2,0.00576325]
[1724343007722,0.53832111,2601.3,2601.2,0.00576325]
[1724343007918,0.15401111,2601.3,2601.2,0.39008325]
[1724343008518,0.3779,2601.4,2601.3,0.38431]
[1724343008720,0.53187942,2601.4,2601.3,0.38431]
[1724343009319,0.53187942,2601.4,2601.2,0.00963474]
[1724343009320,0.38431,2601.3,2601.2,0.00963474]
[1724343009521,0.92048942,2601.3,2601.2,0.00963474]
[1724343009716,4.76448942,2601.3,2601.2,0.00963474]
[1724343010514,5.0935326,2601.3,2601.2,0.00963474]
[1724343011121,4.7092226,2601.3,2601.2,0.39395474]
[1724343011624,0.3822,2601.3,2601.2,0.00963474]
[1724343011925,4.61051,2601.3,2601.2,0.00963474]
[1724343012134,1.24950006,2601.3,2601.2,0.00963474]
[1724343012426,5.09350006,2601.3,2601.2,0.00963474]
[1724343012818,1.24950006,2601.3,2601.2,0.00963474]
[1724343013018,5.09350006,2601.3,2601.2,0.00963474]
[1724343013428,4.70919006,2601.3,2601.2,0.39395474]
[1724343013624,4.38018649,2601.3,2601.2,0.00963474]
[1724343013825,0.53618649,2601.3,2601.2,0.39395474]
[1724343014135,0.00404573,2601.6,2601.5,0.38428]
[1724343014427,0.48697379,2601.6,2601.5,0.38428]
[1724343014727,0.00404573,2601.6,2601.5,0.38428]
[1724343015026,0.15801055,2601.6,2601.5,0.38428]
[1724343015422,0.64092364,2601.6,2601.5,0.38428]
[1724343015732,0.1580048,2601.6,2601.5,0.38428]
[1724343016126,0.1580048,2601.6,2601.5,4.22828]
[1724343016325,0.00404573,2601.6,2601.5,4.22828]
[1724343016832,0.00404573,2601.6,2601.5,0.38428]
[1724343017032,0.00404573,2601.6,2601.5,4.22828]
[1724343017422,0.00404573,2601.6,2601.5,0.38428]
[1724343017931,0.00404573,2601.6,2601.2,3.21743474]
[1724343018136,0.15797623,2601.6,2601.4,0.38428]
[1724343018331,0.00404573,2601.6,2601.4,0.38428]
[1724343018532,0.15394489,2601.5,2601.4,0.38428]
[1724343018731,0.15394489,2601.5,2601.3,0.3843]
[1724343018927,0.50454489,2601.4,2601.3,0.3843]
[1724343019537,0.50454489,2601.4,2601.2,0.39394474]
[1724343019840,0.15394489,2601.3,2601.2,0.00963474]
[1724343020024,0.90245489,2601.3,2601.2,0.00963474]
[1724343020222,1.23147809,2601.3,2601.2,0.00963474]
[1724343022027,0.96081,2601.2,2600.6,0.3844]
[1724343022232,0.38437,2600.9,2600.7,0.3844]
[1724343022427,0.91692489,2600.8,2600.2,0.0048]
[1724343022629,0.91692489,2600.8,2600.1,3.5788]
[1724343022630,1.2215241,2600.7,2600.1,3.2078]
[1724343022831,0.15394489,2600.6,2600.4,0.38444]
[1724343023034,0.48311177,2600.6,2600.4,0.38764469]
[1724343023235,0.48311177,2600.6,2600.5,0.38442]
[1724343023443,0.15394489,2600.6,2600.5,0.38442]
[1724343024136,0.15405502,2600.6,2600.5,3.8456]
[1724343024339,3.5723,2601.0,2600.5,3.8456]
[1724343024534,3.5723,2601.0,2600.4,3.21100469]
[1724343024535,0.48313673,2600.9,2600.8,0.38437]
[1724343024731,0.48313673,2600.9,2600.7,0.38439]
[1724343024936,0.48317628,2600.8,2600.7,0.38439]
[1724343025343,0.3826,2600.9,2600.7,0.38439]
[1724343025528,0.48316502,2600.8,2600.6,0.3844]
[1724343025840,0.48319645,2600.7,2600.4,3.21100469]
[1724343026035,0.15405594,2600.6,2600.5,0.38442]
[1724343026426,0.15405594,2600.6,2600.4,3.59543469]
[1724343026625,0.3638,2600.5,2600.4,3.21100469]
[1724343026839,0.51787992,2600.5,2600.4,3.21100469]
[1724343027229,4.73647992,2600.5,2600.4,0.00320469]
[1724343027433,0.89087992,2600.5,2600.4,0.00320469]
[1724343027634,5.45007284,2600.5,2600.4,0.00320469]
[1724343027835,5.06565284,2600.5,2600.4,0.00320469]
[1724343028032,5.45007284,2600.5,2600.4,0.00320469]
[1724343029134,5.06565284,2600.5,2600.4,0.00320469]
[1724343029834,5.45007284,2600.5,2600.4,0.00320469]
[1724343030644,5.45016134,2600.5,2600.4,0.00320469]
[1724343031644,4.96682,2600.5,2600.4,0.00320469]
[1724343031846,5.45017989,2600.5,2600.4,0.00320469]
[1724343032344,5.06575989,2600.5,2600.4,0.38764469]
[1724343032543,0.84715989,2600.5,2600.4,0.38764469]
[1724343032841,0.48335989,2600.5,2600.4,0.38764469]
[1724343033736,4.71337989,2600.5,2600.4,0.00320469]
[1724343034241,6.27558309,2600.5,2600.4,0.00320469]
[1724343034547,0.38445,2600.3,2600.2,0.00576325]
[1724343034754,4.19342585,2600.3,2600.2,0.00576325]
[1724343035045,8.52248374,2600.3,2600.2,0.00576325]
[1724343035243,8.87198374,2600.3,2600.2,0.00576325]
[1724343035443,8.87198374,2600.3,2600.2,0.01065271]
[1724343035741,13.87198374,2600.3,2600.2,0.01065271]
[1724343035943,13.84748555,2600.3,2599.8,0.38452]
[1724343036133,1.0846712,2600.2,2599.6,0.38455]
[1724343036442,0.38454,2599.8,2599.5,0.38457]
[1724343036642,0.15416381,2599.7,2599.6,0.38456]
[1724343036942,0.15813537,2599.7,2599.6,0.00461516]
[1724343037339,0.54267537,2599.7,2599.6,0.00461516]
[1724343037544,7.92625375,2599.7,2599.6,0.00461516]
[1724343038037,3.69531375,2599.7,2599.6,0.00461516]
[1724343038239,0.15813537,2599.7,2599.6,0.00461516]
[1724343039053,0.53963537,2599.7,2599.6,0.00461516]
[1724343039533,0.53963537,2599.7,2599.6,0.38917516]
[1724343039735,0.15813537,2599.7,2599.6,0.38917516]
[1724343039943,0.00397156,2599.7,2599.6,0.38917516]
[1724343040133,0.00397156,2599.7,2599.6,4.23557516]
[1724343041138,0.00397156,2599.7,2599.6,4.60467516]
[1724343042141,0.00397156,2599.7,2599.6,0.38917516]
[1724343042444,0.00397156,2599.7,2599.6,4.23557516]
[1724343042640,0.00397156,2599.7,2599.6,11.15837516]
[1724343043349,0.00397156,2599.7,2599.6,44.73557516]
[1724343043543,0.00397156,2599.7,2599.6,45.69697516]
[1724343043745,0.00397156,2599.7,2599.6,50.69697516]
[1724343044247,0.00576325,2599.9,2599.6,50.69697516]
[1724343044248,0.00576325,2599.9,2599.8,0.38453]
[1724343044447,0.00576325,2599.9,2599.8,7.43873]
[1724343044854,0.00576325,2599.9,2599.8,7.80553]
[1724343045438,0.00908941,2599.9,2599.8,7.80553]
[1724343045953,0.00908941,2599.9,2599.8,8.76686]
[1724343046551,0.00908941,2599.9,2599.8,7.80553]
[1724343047545,0.00908941,2599.9,2599.8,7.43873]
[1724343048151,0.74409941,2599.9,2599.8,3.2078]
[1724343048550,0.89829686,2599.9,2599.7,0.38454]
[1724343048849,0.35958941,2599.9,2599.8,0.38453]
[1724343049054,0.51377996,2599.9,2599.8,0.38453]
[1724343049554,0.35958941,2599.9,2599.8,0.38453]
[1724343050958,0.35958941,2599.9,2599.6,0.00461516]
[1724343050959,0.74409941,2599.9,2599.7,0.38454]
[1724343051154,0.38453,2599.8,2599.6,0.38916516]
[1724343051350,0.38454,2599.7,2599.6,0.00461516]
[1724343052356,4.38516385,2599.7,2599.6,0.00461516]
[1724343052961,12.59296385,2599.7,2599.6,0.00461516]
[1724343053353,14.23727438,2599.7,2599.6,0.00461516]
[1724343054259,0.3846,2599.4,2599.2,0.38461]
[1724343054460,0.3493,2599.3,2599.2,0.38461]
[1724343055161,0.3445,2599.3,2599.2,0.38922944]
[1724343057160,3.5523,2599.3,2599.2,0.38922944]
[1724343057358,0.3445,2599.3,2599.2,0.38922944]
[1724343058265,0.38458,2599.5,2599.4,0.38459]
[1724343058465,4.38591315,2599.5,2599.4,0.38459]
[1724343058968,4.00133315,2599.5,2599.4,0.38459]
[1724343059171,3.8472,2599.5,2599.4,0.38459]
[1724343059460,4.00131974,2599.5,2599.4,0.38459]
[1724343061665,4.38588974,2599.5,2599.3,0.38459]
[1724343061862,0.7331,2599.6,2599.2,0.00461944]
[1724343062164,0.15411618,2599.5,2599.4,0.38459]
[1724343063157,0.15411618,2599.5,2599.2,0.00461944]
[1724343063158,0.53868618,2599.5,2599.3,0.38459]
[1724343063365,0.15411618,2599.4,2599.3,0.38459]
[1724343063572,0.15411618,2599.4,2599.2,0.00461944]
[1724343063573,3.6910535,2599.5,2599.2,0.38922944]
[1724343063760,0.53870618,2599.4,2599.2,0.38922944]
[1724343063965,0.15411618,2599.3,2599.2,0.38923944]
[1724343064162,0.53870618,2599.4,2599.2,0.38923944]
[1724343064366,0.15411618,2599.3,2599.2,0.38923944]
[1724343064865,0.15411618,2599.3,2599.2,0.69693944]
[1724343065258,0.38459,2599.4,2599.3,0.3846]
[1724343065462,0.38459,2599.4,2599.2,0.69692944]
[1724343065463,0.3846,2599.3,2599.2,0.69692944]
[1724343065660,4.71500382,2599.3,2599.2,0.31231944]
[1724343066769,4.33040382,2599.3,2599.2,0.69693944]
[1724343068672,0.48320382,2599.3,2599.2,0.69693944]
[1724343068874,3.2078,2599.5,2599.4,0.38459]
[1724343069172,4.07545838,2599.5,2599.3,0.38459]
[1724343069373,0.48308838,2599.4,2599.3,0.38459]
[1724343069566,0.86767838,2599.4,2599.2,0.69692944]
[1724343069872,0.48308838,2599.3,2599.2,0.69692944]
[1724343070075,3.59238,2599.5,2599.3,0.3846]
[1724343070274,4.19308808,2599.5,2599.3,0.3846]
[1724343070667,0.32908998,2599.4,2599.3,0.3846]
[1724343071077,0.4831885,2599.4,2599.3,0.3846]
[1724343071575,0.8677885,2599.4,2599.2,0.31231944]
[1724343071777,0.8677885,2599.3,2599.2,0.31231944]
[1724343072571,0.38462,2599.2,2599.0,0.38464]
[1724343072767,0.8372885,2599.1,2599.0,0.38464]
[1724343072969,0.3541,2599.1,2599.0,0.38464]
[1724343073172,0.83729926,2599.1,2599.0,0.38464]
[1724343073581,0.83729926,2599.1,2599.0,0.3889188]
[1724343074280,0.3541,2599.1,2599.0,0.5685188]
[1724343074580,0.83724802,2599.1,2599.0,0.5685188]
[1724343075375,1.22187802,2599.1,2599.0,0.5685188]
[1724343075772,1.59507802,2599.1,2599.0,0.5685188]
[1724343076274,1.21042672,2599.1,2599.0,0.5685188]
[1724343076469,0.85632672,2599.1,2599.0,0.5685188]
[1724343076669,0.3732,2599.1,2599.0,0.5685188]
[1724343076869,0.52727697,2599.1,2599.0,0.5685188]
[1724343077076,0.4831148,2599.1,2599.0,8.5851388]
[1724343077480,0.15407697,2599.1,2599.0,8.9456388]
[1724343077680,0.97380609,2599.5,2599.1,0.96157]
[1724343077876,0.48305058,2599.4,2599.3,0.3846]
[1724343078880,7.3108,2599.8,2599.7,0.38454]
[1724343078881,0.60060609,2599.8,2599.7,0.38454]
[1724343079178,0.32898869,2599.8,2599.7,0.38454]
[1724343079369,0.48301254,2599.8,2599.7,0.38454]
[1724343079573,1.1982918,2599.8,2599.7,0.38454]
[1724343079887,1.1982918,2599.8,2599.4,3.2078]
[1724343080084,0.84710311,2599.7,2599.6,0.38455]
[1724343080378,0.84684912,2599.7,2599.6,0.38455]
[1724343080879,5.07779912,2599.7,2599.5,0.38457]
[1724343081177,1.0832243,2599.6,2599.5,0.38457]
[1724343081381,1.4677943,2599.6,2599.4,0.38458]
[1724343081584,1.0832243,2599.5,2599.4,0.38458]
[1724343081781,0.48274912,2599.5,2599.4,0.38458]
[1724343082179,1.0832243,2599.5,2599.3,0.38459]
[1724343082378,0.48274912,2599.4,2599.3,0.3846]
[1724343082771,0.48274912,2599.4,2599.2,0.38461]
[1724343082972,0.76881,2599.3,2599.1,0.38462]
[1724343083183,0.86736912,2599.2,2599.0,3.7763188]
[1724343083485,0.86736912,2599.2,2599.1,0.38463]
[1724343083486,0.3521,2599.2,2599.1,0.38463]
[1724343083671,0.83482006,2599.2,2599.1,0.38463]
[1724343083875,0.48272006,2599.2,2599.1,0.38463]
[1724343084081,0.9845911,2599.3,2599.2,0.38462]
[1724343084286,1.31338434,2599.3,2599.2,0.38462]
[1724343084584,1.46726899,2599.3,2599.1,0.38462]
[1724343084885,0.48267789,2599.2,2599.1,0.38462]
[1724343087573,0.48267789,2599.2,2599.1,4.23182]
[1724343087783,0.48267789,2599.2,2599.1,5.19341]
[1724343087983,0.15388465,2599.2,2599.1,10.56721]
[1724343088388,0.15388465,2599.2,2599.1,11.5288]
[1724343089081,0.6003911,2599.7,2599.6,1.34596]
[1724343089285,0.48237114,2599.7,2599.6,5.19236]
[1724343089476,0.60948051,2599.9,2599.7,0.38454]
[1724343089681,0.48243086,2599.8,2599.7,0.38454]
[1724343089876,0.48243086,2599.8,2599.7,4.23094]
[1724343090780,0.48243086,2599.8,2599.7,11.15366]
[1724343090988,0.96473948,2599.8,2599.7,11.52716]
[1724343091291,4.103,2600.7,2599.8,3.8464]
[1724343091493,3.2078,2600.9,2600.7,0.38439]
[1724343091494,3.59217,2600.9,2600.7,0.38439]
[1724343091792,0.3844,2600.7,2600.5,0.38442]
[1724343091975,0.38443,2600.5,2600.3,0.38445]
[1724343092179,0.48231914,2600.4,2600.3,0.38445]
[1724343092383,0.48586396,2600.4,2600.3,0.38445]
[1724343093787,0.00354482,2600.4,2600.3,0.38445]
[1724343094088,0.00354482,2600.4,2600.2,0.38446]
[1724343094089,0.48562172,2600.4,2600.2,0.38446]
[1724343094292,0.15363594,2600.3,2600.1,0.00576325]
[1724343094492,0.15718076,2600.4,2600.3,0.38445]
[1724343094889,0.48562356,2600.4,2600.3,0.38445]
[1724343095087,0.87006356,2600.4,2600.3,0.1792]
[1724343095288,0.48562356,2600.4,2600.3,0.56365]
[1724343095785,0.87006356,2600.4,2600.3,0.1792]
[1724343095988,4.71566356,2600.4,2600.3,0.1792]
[1724343097193,0.48562356,2600.4,2600.3,0.56365]
[1724343099397,0.48562356,2600.4,2600.3,0.1792]
[1724343099785,0.87006356,2600.4,2600.3,0.1792]
[1724343099990,4.71566356,2600.4,2600.3,0.1792]
[1724343100186,4.38722076,2600.4,2600.3,0.1792]
[1724343100391,4.71561255,2600.4,2600.3,0.1792]
[1724343103497,4.23358482,2600.4,2600.3,0.1792]
[1724343103695,4.23358482,2600.4,2600.1,0.00576325]
[1724343103696,0.38447,2600.2,2600.1,0.00576325]
[1724343103996,13.87671452,2600.2,2600.1,0.00576325]
[1724343104189,8.87671452,2600.2,2600.1,0.00576325]
[1724343104389,13.87671452,2600.2,2600.1,0.00576325]
[1724343106293,0.38453,2599.9,2599.6,0.38455]
[1724343106495,0.48196452,2599.8,2599.6,0.38455]
[1724343106690,0.48196452,2599.8,2599.5,3.2078]
[1724343106691,0.15360929,2599.7,2599.5,3.59236]
[1724343106896,0.3684,2599.7,2599.6,0.38456]
[1724343107108,0.85026229,2599.7,2599.6,0.38456]
[1724343107289,4.69666229,2599.7,2599.6,0.38456]
[1724343107495,5.17851343,2599.7,2599.6,0.38456]
[1724343107692,4.85024806,2599.7,2599.6,0.38456]
[1724343107891,1.33211563,2599.7,2599.6,0.38456]
[1724343108400,1.33211563,2599.7,2599.6,4.23096]
[1724343108401,0.96371563,2599.7,2599.6,4.23096]
[1724343109193,0.96371563,2599.7,2599.6,5.19236]
[1724343109393,0.6354488,2599.7,2599.6,10.19236]
[1724343109598,0.6354116,2599.7,2599.6,10.19236]
[1724343109997,0.6354116,2599.7,2599.6,5.19236]
[1724343110397,0.6354116,2599.7,2599.6,10.19236]
[1724343110598,0.48186229,2599.7,2599.6,10.19236]
[1724343110800,4.4886,2600.1,2600.0,0.3845]
[1724343110999,4.81680021,2600.1,2600.0,0.3845]
[1724343111410,0.71380021,2600.1,2600.0,0.3845]
[1724343111706,0.71380021,2600.1,2599.9,0.3845]
[1724343111707,0.86732624,2600.1,2599.9,0.3845]
[1724343112003,0.48172624,2600.0,2599.9,0.3845]
[1724343113403,0.15352603,2600.0,2599.9,11.15348]
[1724343113605,0.00354482,2600.4,2600.3,0.38445]
[1724343113900,0.48513881,2600.4,2600.3,0.38445]
[1724343114095,0.48516277,2600.4,2600.3,0.38445]
[1724343116501,0.86961277,2600.4,2600.2,3.59226]
[1724343116700,0.48161795,2600.3,2599.8,3.2078]
[1724343116901,0.76867,2600.2,2600.0,0.38449]
[1724343117105,0.48161795,2600.1,2600.0,0.38449]
[1724343117408,0.3842,2600.2,2600.0,0.38449]
[1724343117704,0.48168146,2600.1,2600.0,0.38449]
[1724343120802,0.38446,2600.3,2600.2,0.38447]
[1724343121012,0.38446,2600.3,2599.9,0.38451]
[1724343121013,0.3845,2600.1,2599.9,0.38451]
[1724343121213,0.85259417,2600.0,2599.9,0.38451]
[1724343121410,1.20239417,2600.0,2599.9,0.38451]
[1724343122513,1.20239417,2600.0,2599.4,4.16925]
[1724343122514,0.38454,2599.8,2599.5,0.38456]
[1724343122696,8.25659417,2600.0,2599.4,3.2078]
[1724343122697,0.48159417,2599.7,2599.4,3.2078]
[1724343122899,0.38453,2599.8,2599.5,0.38457]
[1724343123114,0.48159329,2599.7,2599.5,0.38457]
[1724343123412,0.48159957,2599.6,2599.5,0.38457]
[1724343124110,0.48159957,2599.6,2599.4,3.2078]
[1724343124302,0.83139957,2599.5,2599.4,3.59238]
[1724343124497,0.83139957,2599.5,2599.4,3.2078]
[1724343124808,0.83139957,2599.5,2599.4,7.43959]
[1724343125305,0.48159957,2599.5,2599.4,7.43959]
[1724343126916,0.75643,2599.8,2599.5,0.38456]
[1724343127117,0.75643,2599.8,2599.6,0.38456]
[1724343127421,0.15346668,2599.7,2599.6,0.38456]
[1724343127715,0.15346668,2599.7,2599.5,0.38457]
[1724343127915,0.48148857,2599.6,2599.1,4.53948]
[1724343128216,0.15346668,2599.7,2599.5,0.38456]
[1724343128417,0.48155901,2599.6,2599.5,0.38456]
[1724343128711,0.86612901,2599.6,2599.1,3.2078]
[1724343128906,0.84963068,2599.5,2599.1,3.2078]
[1724343129105,0.48163068,2599.4,2599.3,0.38459]
[1724343129310,4.06893068,2599.4,2599.0,0.3889188]
[1724343129506,1.22974068,2599.3,2599.1,0.38463]
[1724343129712,0.48163068,2599.2,2599.1,0.38463]
[1724343130506,0.3635,2599.3,2599.0,0.0042788]
[1724343130707,0.48145421,2599.2,2599.1,0.38462]